fUST/lending_fUST_20250625
["ID","MTS","AMOUNT","RATE_DAILY","PERIOD"]
[367581221,1750865443582,-460.0,0.00016712,2]
[367581225,1750865443608,-460.0,0.00016712,2]
[367581228,1750865443618,-3446.56,0.00016712,2]
[367581230,1750865443628,-460.0,0.00016712,2]
[367581232,1750865443637,-460.0,0.00016712,2]
[367581234,1750865443646,-460.0,0.00016712,2]
[367581236,1750865443656,-723.02,0.00016712,2]
[367581238,1750865443665,-652.7,0.00016712,2]
[367581240,1750865443675,-466.3224957,0.00016712,2]
[367581242,1750865443684,-460.0,0.00016712,2]
[367581244,1750865443693,-460.0,0.00016712,2]
[367581246,1750865443703,-463.00090332,0.00016712,2]
[367581248,1750865443712,-1677.02,0.00016712,2]
[367581250,1750865443722,-460.0,0.00016712,2]
[367581252,1750865443731,-460.0,0.00016712,2]
[367581254,1750865443741,-460.0,0.00016712,2]
[367581256,1750865443750,-460.0,0.00016712,2]
[367581258,1750865443761,-448.07106247,0.00016712,2]
[367581260,1750865443771,-460.0,0.00016712,2]
[367581261,1750865443781,-460.0,0.00016712,2]
[367581263,1750865443790,-432.472781,0.00016712,2]
[367581265,1750865443799,-1913.91,0.00016712,2]
[367581267,1750865443808,-333.34778863,0.00016712,2]
[367581269,1750865443819,-1020.84,0.00016712,2]
[367581271,1750865443829,-460.0,0.00016712,2]
[367581273,1750865443838,-9083.59,0.00016712,2]
[367581275,1750865443847,-460.0,0.00016712,2]
[367581277,1750865443857,-460.0,0.00016712,2]
[367581279,1750865443866,-460.0,0.00016712,2]
[367581281,1750865443875,-432.78551015,0.00016712,2]
[367581283,1750865443884,-216.00006241,0.00016712,2]
[367581285,1750865443894,-460.0,0.00016712,2]
[367581287,1750865443903,-460.0,0.00016712,2]
[367581289,1750865443913,-1941.87,0.00016712,2]
[367581291,1750865443922,-1677.32,0.00016712,2]
[367581293,1750865443932,-1866.99,0.00016712,2]
[367581295,1750865443941,-460.0,0.00016712,2]
[367581297,1750865443950,-1011.97,0.00016712,2]
[367581299,1750865443959,-9531.72,0.00016712,2]
[367581302,1750865443969,-460.0,0.00016712,2]
[367581304,1750865443979,-9341.39,0.00016712,2]
[367581306,1750865443988,-460.0,0.00016712,2]
[367581308,1750865443997,-460.0,0.00016712,2]
[367581310,1750865444008,-460.0,0.00016712,2]
[367581311,1750865444017,-1512.77,0.00016712,2]
[367581313,1750865444026,-460.0,0.00016712,2]
[367581316,1750865444036,-542.82,0.00016712,2]
[367581318,1750865444045,-460.0,0.00016712,2]
[367581319,1750865444054,-460.0,0.00016712,2]
[367581321,1750865444063,-460.0,0.00016712,2]
[367581324,1750865444073,-676.56,0.00016712,2]
[367581326,1750865444082,-460.0,0.00016712,2]
[367581327,1750865444094,-460.0,0.00016712,2]
[367581330,1750865444104,-532.64,0.00016712,2]
[367581331,1750865444114,-460.0,0.00016712,2]
[367581334,1750865444123,-5778.95,0.00016712,2]
[367581336,1750865444133,-460.0,0.00016712,2]
[367581337,1750865444142,-5059.17,0.00016712,2]
[367581340,1750865444151,-460.0,0.00016712,2]
[367581342,1750865444160,-460.0,0.00016712,2]
[367581344,1750865444169,-484.58,0.00016712,2]
[367581346,1750865444178,-1742.31,0.00016712,2]
[367581348,1750865444187,-460.0,0.00016712,2]
[367581350,1750865444197,-460.0,0.00016712,2]
[367581351,1750865444206,-460.0,0.00016712,2]
[367581353,1750865444215,-1449.64,0.00016712,2]
[367581355,1750865444224,-1542.05,0.00016712,2]
[367581357,1750865444233,-460.0,0.00016712,2]
[367581359,1750865444242,-460.0,0.00016712,2]
[367581361,1750865444252,-460.0,0.00016712,2]
[367581363,1750865444261,-460.0,0.00016712,2]
[367581365,1750865444270,-460.0,0.00016712,2]
[367581367,1750865444280,-460.0,0.00016712,2]
[367581369,1750865444288,-460.0,0.00016712,2]
[367581371,1750865444297,-1831.63,0.00016712,2]
[367581373,1750865444305,-1793.94,0.00016712,2]
[367581375,1750865444314,-461.32720177,0.00016712,2]
[367581377,1750865444323,-476.83,0.00016712,2]
[367581379,1750865444332,-460.0,0.00016712,2]
[367581381,1750865444341,-460.0,0.00016712,2]
[367581383,1750865444350,-460.0,0.00016712,2]
[367581385,1750865444359,-515.85186899,0.00016712,2]
[367581387,1750865444369,-460.0,0.00016712,2]
[367581389,1750865444378,-1385.67,0.00016712,2]
[367581391,1750865444387,-460.0,0.00016712,2]
[367581393,1750865444396,-495.35,0.00016712,2]
[367581395,1750865444406,-2039.65,0.00016712,2]
[367581397,1750865444415,-516.34,0.00016712,2]
[367581399,1750865444424,-460.0,0.00016712,2]
[367581401,1750865444433,-865.22,0.00016712,2]
[367581403,1750865444443,-629.51,0.00016712,2]
[367581405,1750865444452,-460.0,0.00016712,2]
[367581407,1750865444461,-385.65222731,0.00016712,2]
[367581409,1750865444471,-1513.91,0.00016712,2]
[367581411,1750865444480,-460.0,0.00016712,2]
[367581413,1750865444489,-662.51,0.00016712,2]
[367581415,1750865444498,-493.26608209,0.00016712,2]
[367581417,1750865444508,-460.0,0.00016712,2]
[367581419,1750865444518,-460.0,0.00016712,2]
[367581421,1750865444527,-619.7,0.00016712,2]
[367581423,1750865444536,-460.0,0.00016712,2]
[367581424,1750865444546,-460.0,0.00016712,2]
[367581426,1750865444555,-460.0,0.00016712,2]
[367581428,1750865444564,-458.59299514,0.00016712,2]
[367581430,1750865444573,-460.0,0.00016712,2]
[367581432,1750865444582,-460.0,0.00016712,2]
[367581434,1750865444591,-460.0,0.00016712,2]
[367581436,1750865444601,-460.0,0.00016712,2]
[367581438,1750865444610,-813.69,0.00016712,2]
[367581440,1750865444618,-474.2,0.00016712,2]
[367581441,1750865444627,-460.0,0.00016712,2]
[367581442,1750865444636,-460.0,0.00016712,2]
[367581443,1750865444645,-5802.33,0.00016712,2]
[367581444,1750865444654,-1720.62,0.00016712,2]
[367581445,1750865444664,-925.1,0.00016712,2]
[367581446,1750865444673,-422.39718225,0.00016712,2]
[367581447,1750865444682,-460.0,0.00016712,2]
[367581449,1750865444692,-1268.29,0.00016712,2]
[367581451,1750865444701,-460.0,0.00016712,2]
[367581453,1750865444710,-440.1438782,0.00016712,2]
[367581455,1750865444719,-2538.55,0.00016712,2]
[367581457,1750865444728,-680.21,0.00016712,2]
[367581459,1750865444737,-1465.72,0.00016712,2]
[367581461,1750865444747,-460.0,0.00016714,2]
[367581463,1750865444757,-225.21498681,0.00016714,2]
[367581465,1750865444766,-460.0,0.00016714,2]
[367581467,1750865444775,-460.0,0.00016714,2]
[367581469,1750865444785,-460.0,0.00016714,2]
[367581471,1750865444794,-1442.84,0.00016714,2]
[367581473,1750865444803,-1912.47,0.00016714,2]
[367581475,1750865444812,-1123.09,0.00016714,2]
[367581477,1750865444821,-2998.92,0.00016714,2]
[367581479,1750865444830,-460.0,0.00016714,2]
[367581481,1750865444839,-460.0,0.00016714,2]
[367581483,1750865444848,-460.0,0.00016714,2]
[367581485,1750865444857,-1118.57,0.00016714,2]
[367581487,1750865444867,-460.0,0.00016714,2]
[367581489,1750865444876,-586.05,0.00016714,2]
[367581491,1750865444885,-460.0,0.00016714,2]
[367581493,1750865444894,-460.0,0.00016714,2]
[367581495,1750865444904,-460.0,0.00016714,2]
[367581497,1750865444913,-460.0,0.00016714,2]
[367581499,1750865444922,-460.0,0.00016714,2]
[367581501,1750865444931,-460.0,0.00016714,2]
[367581503,1750865444940,-151.0,0.00016714,2]
[367581505,1750865444949,-151.0,0.00016716,2]
[367581507,1750865444958,-151.0,0.00016716,2]
[367581509,1750865444967,-151.0,0.00016716,2]
[367581511,1750865444976,-460.0,0.00016717,2]
[367581513,1750865444986,-460.0,0.00016717,2]
[367581515,1750865444996,-151.0,0.00016718,2]
[367581517,1750865445007,-151.0,0.00016718,2]
[367581519,1750865445016,-164.726325,0.00016719,2]
[367581522,1750865445032,-164.726325,0.00016719,2]
[367581524,1750865445043,-151.0,0.00016719,2]
[367581526,1750865445054,-153.204073,0.00016719,2]
[367581528,1750865445067,-290.114098,0.00016719,2]
[367581530,1750865445076,-290.114098,0.00016719,2]
[367581532,1750865445090,-2558.12559279,0.00016852,2]
[367581534,1750865445099,-460.0,0.00016986,2]
[367581536,1750865445109,-460.0,0.00016986,2]
[367581538,1750865445119,-460.0,0.00016986,2]
[367581540,1750865445129,-546.21,0.00016986,2]
[367581543,1750865445138,-175.44210508,0.00016986,2]
[367581545,1750865445148,-460.0,0.00016986,2]
[367581547,1750865445158,-460.0,0.00016986,2]
[367581549,1750865445168,-748.44,0.00016986,2]
[367581551,1750865445178,-460.0,0.00016986,2]
[367581553,1750865445187,-460.0,0.00016986,2]
[367581555,1750865445196,-460.0,0.00016986,2]
[367581557,1750865445206,-460.0,0.00016986,2]
[367581559,1750865445216,-460.0,0.00016986,2]
[367581561,1750865445226,-460.0,0.00016986,2]
[367581563,1750865445235,-460.0,0.00016986,2]
[367581565,1750865445244,-460.0,0.00016986,2]
[367581567,1750865445254,-460.0,0.00016986,2]
[367581569,1750865445263,-488.37,0.00016986,2]
[367581571,1750865445272,-460.0,0.00016986,2]
[367581573,1750865445281,-460.0,0.00016986,2]
[367581576,1750865445291,-460.0,0.00016986,2]
[367581578,1750865445301,-460.0,0.00016986,2]
[367581580,1750865445310,-460.0,0.00016986,2]
[367581582,1750865445320,-1548.68,0.00016986,2]
[367581584,1750865445330,-922.49,0.00016986,2]
[367581586,1750865445339,-1254.97,0.00016986,2]
[367581588,1750865445349,-476.17,0.00016986,2]
[367581590,1750865445359,-460.0,0.00016986,2]
[367581592,1750865445368,-460.0,0.00016986,2]
[367581594,1750865445378,-460.0,0.00016986,2]
[367581596,1750865445387,-460.0,0.00016986,2]
[367581598,1750865445397,-460.0,0.00016986,2]
[367581600,1750865445406,-460.0,0.00016986,2]
[367581602,1750865445416,-460.0,0.00016986,2]
[367581604,1750865445425,-460.0,0.00016986,2]
[367581606,1750865445434,-460.0,0.00016986,2]
[367581608,1750865445444,-460.0,0.00016986,2]
[367581610,1750865445453,-460.0,0.00016986,2]
[367581612,1750865445463,-798.75,0.00016986,2]
[367581614,1750865445472,-460.0,0.00016986,2]
[367581616,1750865445482,-460.0,0.00016986,2]
[367581618,1750865445491,-460.0,0.00016986,2]
[367581620,1750865445501,-460.0,0.00016986,2]
[367581622,1750865445510,-460.0,0.00016986,2]
[367581624,1750865445520,-812.26,0.00016986,2]
[367581626,1750865445529,-460.0,0.00016986,2]
[367581628,1750865445538,-460.0,0.00016986,2]
[367581630,1750865445548,-460.0,0.00016986,2]
[367581632,1750865445557,-5630.9,0.00016986,2]
[367581635,1750865445567,-460.0,0.00016986,2]
[367581637,1750865445577,-460.0,0.00016986,2]
[367581639,1750865445586,-460.0,0.00016986,2]
[367581641,1750865445597,-721.07,0.00016986,2]
[367581643,1750865445606,-460.0,0.00016986,2]
[367581645,1750865445615,-560.78,0.00016986,2]
[367581648,1750865445624,-460.0,0.00016986,2]
[367581650,1750865445634,-460.0,0.00016986,2]
[367581652,1750865445643,-460.0,0.00016986,2]
[367581654,1750865445653,-572.72,0.00016986,2]
[367581656,1750865445662,-488.02,0.00016986,2]
[367581658,1750865445672,-460.0,0.00016986,2]
[367581660,1750865445681,-669.72,0.00016986,2]
[367581662,1750865445690,-482.15378599,0.00016986,2]
[367581663,1750865445699,-5057.47,0.00016986,2]
[367581666,1750865445709,-1322.94,0.00016986,2]
[367581668,1750865445719,-460.0,0.00016986,2]
[367581670,1750865445728,-978.97,0.00016986,2]
[367581672,1750865445737,-7603.59,0.00016986,2]
[367581674,1750865445747,-504.11538217,0.00016986,2]
[367581675,1750865445756,-588.0,0.00016986,2]
[367581679,1750865445766,-2334.53,0.00016986,2]
[367581681,1750865445776,-460.0,0.00016986,2]
[367581683,1750865445785,-460.0,0.00016986,2]
[367581684,1750865445795,-3446.56,0.00016986,2]
[367581686,1750865445804,-460.0,0.00016986,2]
[367581689,1750865445813,-460.0,0.00016986,2]
[367581691,1750865445823,-460.0,0.00016986,2]
[367581692,1750865445832,-460.0,0.00016986,2]
[367581695,1750865445842,-723.02,0.00016986,2]
[367581696,1750865445851,-652.7,0.00016986,2]
[367581698,1750865445860,-460.0,0.00016986,2]
[367581700,1750865445870,-460.0,0.00016986,2]
[367581702,1750865445879,-1677.02,0.00016986,2]
[367581704,1750865445888,-460.0,0.00016986,2]
[367581706,1750865445898,-460.0,0.00016986,2]
[367581708,1750865445907,-460.0,0.00016986,2]
[367581710,1750865445916,-460.0,0.00016986,2]
[367581712,1750865445929,-460.0,0.00016986,2]
[367581714,1750865445938,-530.44,0.00016986,2]
[367581717,1750865445948,-1913.91,0.00016986,2]
[367581718,1750865445957,-1020.84,0.00016986,2]
[367581720,1750865445967,-460.0,0.00016986,2]
[367581722,1750865445976,-9083.59,0.00016986,2]
[367581725,1750865445986,-460.0,0.00016986,2]
[367581727,1750865445995,-460.0,0.00016986,2]
[367581728,1750865446005,-460.0,0.00016986,2]
[367581731,1750865446015,-460.0,0.00016986,2]
[367581732,1750865446026,-1941.87,0.00016986,2]
[367581734,1750865446035,-1677.32,0.00016986,2]
[367581752,1750865446192,-1866.99,0.00016986,2]
[367581754,1750865446202,-368.91993366,0.00016986,2]
[367581756,1750865446212,-1011.97,0.00016986,2]
[367581758,1750865446221,-9531.72,0.00016986,2]
[367581760,1750865446230,-9341.39,0.00016986,2]
[367581762,1750865446239,-460.0,0.00016986,2]
[367581764,1750865446249,-460.0,0.00016986,2]
[367581766,1750865446261,-460.0,0.00016986,2]
[367581768,1750865446269,-451.97256478,0.00016986,2]
[367581770,1750865446279,-1512.77,0.00016986,2]
[367581772,1750865446288,-460.0,0.00016986,2]
[367581774,1750865446297,-542.82,0.00016986,2]
[367581776,1750865446307,-460.0,0.00016986,2]
[367581778,1750865446316,-460.0,0.00016986,2]
[367581780,1750865446325,-460.0,0.00016986,2]
[367581782,1750865446334,-676.56,0.00016986,2]
[367581784,1750865446343,-460.0,0.00016986,2]
[367581786,1750865446351,-532.64,0.00016986,2]
[367581788,1750865446361,-460.0,0.00016986,2]
[367581790,1750865446370,-460.0,0.00016986,2]
[367581792,1750865446379,-5778.95,0.00016986,2]
[367581794,1750865446387,-460.0,0.00016986,2]
[367581796,1750865446396,-5059.17,0.00016986,2]
[367581798,1750865446405,-207.29663113,0.00016986,2]
[367581799,1750865446413,-460.0,0.00016986,2]
[367581801,1750865446422,-484.58,0.00016986,2]
[367581803,1750865446431,-1742.31,0.00016986,2]
[367581805,1750865446441,-460.0,0.00016986,2]
[367581807,1750865446450,-1449.64,0.00016986,2]
[367581809,1750865446459,-1542.05,0.00016986,2]
[367581811,1750865446468,-460.0,0.00016986,2]
[367581813,1750865446477,-460.0,0.00016986,2]
[367581815,1750865446485,-460.0,0.00016986,2]
[367581817,1750865446495,-1831.63,0.00016986,2]
[367581819,1750865446504,-1793.94,0.00016986,2]
[367581821,1750865446513,-476.83,0.00016986,2]
[367581823,1750865446521,-460.0,0.00016986,2]
[367581825,1750865446530,-460.0,0.00016986,2]
[367581827,1750865446539,-460.0,0.00016986,2]
[367581829,1750865446548,-460.0,0.00016986,2]
[367581831,1750865446557,-1385.67,0.00016986,2]
[367581833,1750865446566,-495.35,0.00016986,2]
[367581835,1750865446575,-2039.65,0.00016986,2]
[367581837,1750865446584,-599.53311876,0.00016986,2]
[367581839,1750865446593,-516.34,0.00016986,2]
[367581841,1750865446602,-460.0,0.00016986,2]
[367581843,1750865446611,-865.22,0.00016986,2]
[367581844,1750865446619,-629.51,0.00016986,2]
[367581846,1750865446628,-460.0,0.00016986,2]
[367581848,1750865446638,-1513.91,0.00016986,2]
[367581851,1750865446647,-460.0,0.00016986,2]
[367581852,1750865446656,-662.51,0.00016986,2]
[367581854,1750865446666,-460.0,0.00016986,2]
[367581856,1750865446675,-460.0,0.00016986,2]
[367581858,1750865446684,-619.7,0.00016986,2]
[367581860,1750865446693,-460.0,0.00016986,2]
[367581862,1750865446702,-281.72826185,0.00016986,2]
[367581864,1750865446711,-460.0,0.00016986,2]
[367581866,1750865446720,-392.61325351,0.00016986,2]
[367581868,1750865446730,-460.0,0.00016986,2]
[367581870,1750865446739,-460.0,0.00016986,2]
[367581872,1750865446748,-813.69,0.00016986,2]
[367581874,1750865446759,-474.2,0.00016986,2]
[367581876,1750865446768,-460.0,0.00016986,2]
[367581878,1750865446778,-5802.33,0.00016986,2]
[367581880,1750865446787,-1720.62,0.00016986,2]
[367581882,1750865446797,-925.1,0.00016986,2]
[367581884,1750865446809,-540.15252427,0.00016986,2]
[367581886,1750865446819,-1268.29,0.00016986,2]
[367581888,1750865446828,-460.0,0.00016986,2]
[367581890,1750865446837,-2538.55,0.00016986,2]
[367581892,1750865446846,-680.21,0.00016986,2]
[367581894,1750865446854,-1465.72,0.00016986,2]
[367581896,1750865446863,-460.0,0.00016988,2]
[367581898,1750865446872,-460.0,0.00016988,2]
[367581899,1750865446882,-460.0,0.00016988,2]
[367581901,1750865446891,-460.0,0.00016988,2]
[367581903,1750865446901,-1442.84,0.00016988,2]
[367581905,1750865446911,-1912.47,0.00016988,2]
[367581907,1750865446920,-1123.09,0.00016988,2]
[367581909,1750865446929,-2998.92,0.00016988,2]
[367581911,1750865446938,-460.0,0.00016988,2]
[367581913,1750865446947,-460.0,0.00016988,2]
[367581915,1750865446956,-227.46,0.00016988,2]
[367581917,1750865446965,-1118.57,0.00016988,2]
[367581919,1750865446974,-586.05,0.00016988,2]
[367581921,1750865446983,-460.0,0.00016988,2]
[367581923,1750865446993,-460.0,0.00016988,2]
[367581925,1750865447002,-460.0,0.00016988,2]
[367581927,1750865447015,-466.09,0.00016988,2]
[367581929,1750865447024,-460.0,0.00016988,2]
[367581931,1750865447033,-151.0,0.0001699,2]
[367581933,1750865447042,-460.0,0.00016991,2]
[367581935,1750865447051,-151.0,0.00016992,2]
[367581937,1750865447061,-164.726325,0.00016992,2]
[367581939,1750865447071,-164.726325,0.00016992,2]
[367581941,1750865447080,-273.863253,0.00016992,2]
[367581943,1750865447093,-290.114098,0.00016992,2]
[367581945,1750865447102,-290.114098,0.00016992,2]
[367581947,1750865447111,-267.358973,0.00016993,2]
[367581949,1750865447120,-506.37154004,0.00017094,2]
[367581951,1750865447130,-512.51280788,0.00017094,2]
[367581953,1750865447138,-500.0,0.00017094,2]
[367581954,1750865447148,-500.0,0.00017094,2]
[367581956,1750865447157,-500.0,0.00017094,2]
[367581958,1750865447166,-500.0,0.00017094,2]
[367581960,1750865447175,-500.0,0.00017094,2]
[367581962,1750865447184,-500.0,0.00017094,2]
[367581964,1750865447193,-500.0,0.00017094,2]
[367581966,1750865447202,-164.726325,0.000171,2]
[367581968,1750865447211,-164.726325,0.000171,2]
[367581970,1750865447220,-290.114098,0.000171,2]
[367581972,1750865447229,-290.114098,0.000171,2]
[367581974,1750865447238,-731.5913252,0.00017173,2]
[367581976,1750865447247,-5000.0,0.00017185,2]
[367581978,1750865447261,-500.0,0.00017186,2]
[367581980,1750865447271,-500.0,0.00017186,2]
[367581982,1750865447279,-500.0,0.00017186,2]
[367581984,1750865447289,-591.34040337,0.00017186,2]
[367581986,1750865447298,-500.0,0.00017186,2]
[367581988,1750865447311,-500.0,0.00017186,2]
[367581990,1750865447320,-500.0,0.00017186,2]
[367581992,1750865447329,-500.0,0.00017186,2]
[367581994,1750865447338,-160.0,0.00017195,2]
[367581996,1750865447347,-160.0,0.00017195,2]
[367581998,1750865447356,-836.86812089,0.00017195,2]
[367582000,1750865447367,-12558.06783089,0.00017195,2]
[367582002,1750865447375,-846.80634355,0.00017195,2]
[367582004,1750865447384,-160.0,0.00017195,2]
[367582006,1750865447393,-213.69531788,0.00017195,2]
[367582008,1750865447402,-425.18553072,0.00017195,2]
[367582009,1750865447411,-160.0,0.00017195,2]
[367582011,1750865447420,-160.0,0.00017195,2]
[367582013,1750865447429,-160.0,0.00017195,2]
[367582015,1750865447438,-160.0,0.00017195,2]
[367582017,1750865447447,-230.22714675,0.00017195,2]
[367582019,1750865447456,-160.0,0.00017195,2]
[367582021,1750865447465,-524.21181985,0.00017201,2]
[367582023,1750865447474,-529.92070837,0.00017225,2]
[367582025,1750865447483,-500.0,0.00017229,2]
[367582027,1750865447493,-500.0,0.00017229,2]
[367582029,1750865447502,-500.0,0.00017229,2]
[367582031,1750865447513,-460.0,0.0001726,2]
[367582033,1750865447523,-460.0,0.0001726,2]
[367582035,1750865447532,-460.0,0.0001726,2]
[367582037,1750865447541,-546.21,0.0001726,2]
[367582039,1750865447550,-460.0,0.0001726,2]
[367582041,1750865447559,-460.0,0.0001726,2]
[367582043,1750865447568,-748.44,0.0001726,2]
[367582045,1750865447577,-455.09578079,0.0001726,2]
[367582046,1750865447586,-460.0,0.0001726,2]
[367582048,1750865447595,-460.0,0.0001726,2]
[367582050,1750865447606,-460.0,0.0001726,2]
[367582052,1750865447615,-532.05,0.0001726,2]
[367582054,1750865447624,-414.84563029,0.0001726,2]
[367582056,1750865447633,-460.0,0.0001726,2]
[367582058,1750865447642,-488.37,0.0001726,2]
[367582060,1750865447651,-460.0,0.0001726,2]
[367582062,1750865447660,-460.0,0.0001726,2]
[367582064,1750865447669,-460.0,0.0001726,2]
[367582066,1750865447678,-460.0,0.0001726,2]
[367582068,1750865447687,-949.71999575,0.0001726,2]
[367582087,1750865447871,-598.96000425,0.0001726,2]
[367582089,1750865447881,-922.49,0.0001726,2]
[367582091,1750865447891,-1254.97,0.0001726,2]
[367582093,1750865447900,-476.17,0.0001726,2]
[367582095,1750865447910,-460.0,0.0001726,2]
[367582097,1750865447919,-460.0,0.0001726,2]
[367582099,1750865447928,-460.0,0.0001726,2]
[367582101,1750865447937,-460.0,0.0001726,2]
[367582102,1750865447946,-589.45,0.0001726,2]
[367582104,1750865447956,-466.81285141,0.0001726,2]
[367582106,1750865447965,-460.0,0.0001726,2]
[367582108,1750865447975,-460.0,0.0001726,2]
[367582110,1750865447984,-460.0,0.0001726,2]
[367582112,1750865447994,-460.0,0.0001726,2]
[367582114,1750865448003,-798.75,0.0001726,2]
[367582116,1750865448014,-460.0,0.0001726,2]
[367582118,1750865448023,-460.0,0.0001726,2]
[367582120,1750865448032,-460.0,0.0001726,2]
[367582122,1750865448040,-460.0,0.0001726,2]
[367582124,1750865448050,-460.0,0.0001726,2]
[367582126,1750865448063,-812.26,0.0001726,2]
[367582128,1750865448073,-460.0,0.0001726,2]
[367582130,1750865448083,-493.47501272,0.0001726,2]
[367582132,1750865448094,-5630.9,0.0001726,2]
[367582134,1750865448103,-460.0,0.0001726,2]
[367582136,1750865448113,-460.0,0.0001726,2]
[367582137,1750865448122,-460.0,0.0001726,2]
[367582139,1750865448131,-721.07,0.0001726,2]
[367582141,1750865448141,-460.0,0.0001726,2]
[367582143,1750865448150,-560.78,0.0001726,2]
[367582145,1750865448159,-460.0,0.0001726,2]
[367582147,1750865448168,-572.72,0.0001726,2]
[367582149,1750865448178,-460.0,0.0001726,2]
[367582150,1750865448187,-488.02,0.0001726,2]
[367582151,1750865448196,-460.0,0.0001726,2]
[367582152,1750865448205,-669.72,0.0001726,2]
[367582153,1750865448332,-5057.47,0.0001726,2]
[367582154,1750865448342,-1322.94,0.0001726,2]
[367582156,1750865448351,-978.97,0.0001726,2]
[367582158,1750865448361,-7603.59,0.0001726,2]
[367582159,1750865448370,-1346.26318453,0.0001726,2]
[367582162,1750865448386,-988.26681547,0.0001726,2]
[367582164,1750865448396,-460.0,0.0001726,2]
[367582166,1750865448405,-3446.56,0.0001726,2]
[367582168,1750865448414,-460.0,0.0001726,2]
[367582170,1750865448423,-460.0,0.0001726,2]
[367582172,1750865448433,-460.0,0.0001726,2]
[367582174,1750865448443,-399.37353765,0.0001726,2]
[367582176,1750865448452,-723.02,0.0001726,2]
[367582178,1750865448461,-652.7,0.0001726,2]
[367582180,1750865448471,-460.0,0.0001726,2]
[367582182,1750865448481,-331.11353269,0.0001726,2]
[367582184,1750865448491,-1677.02,0.0001726,2]
[367582186,1750865448500,-460.0,0.0001726,2]
[367582188,1750865448510,-460.0,0.0001726,2]
[367582190,1750865448519,-460.0,0.0001726,2]
[367582192,1750865448529,-460.0,0.0001726,2]
[367582194,1750865448538,-460.0,0.0001726,2]
[367582196,1750865448547,-1913.91,0.0001726,2]
[367582198,1750865448556,-1020.84,0.0001726,2]
[367582200,1750865448565,-9083.59,0.0001726,2]
[367582202,1750865448574,-460.0,0.0001726,2]
[367582204,1750865448583,-460.0,0.0001726,2]
[367582206,1750865448592,-460.0,0.0001726,2]
[367582208,1750865448602,-1941.87,0.0001726,2]
[367582210,1750865448611,-1677.32,0.0001726,2]
[367582212,1750865448620,-1866.99,0.0001726,2]
[367582214,1750865448629,-1011.97,0.0001726,2]
[367582216,1750865448638,-9531.72,0.0001726,2]
[367582218,1750865448648,-9341.39,0.0001726,2]
[367582220,1750865448658,-460.0,0.0001726,2]
[367582222,1750865448667,-460.0,0.0001726,2]
[367582224,1750865448677,-460.0,0.0001726,2]
[367582226,1750865448687,-1512.77,0.0001726,2]
[367582228,1750865448696,-542.82,0.0001726,2]
[367582230,1750865448706,-460.0,0.0001726,2]
[367582231,1750865448715,-460.0,0.0001726,2]
[367582233,1750865448725,-560.0,0.0001726,2]
[367582235,1750865448735,-676.56,0.0001726,2]
[367582237,1750865448745,-460.0,0.0001726,2]